bitfinex-derivatives/quotes_SOLF0:USTF0_20260204
["timestamp","ask_amount","ask_price","bid_price","bid_amount"]
[1770168945200,2.58899572,99.47,99.422,2.41589494]
[1770168945602,9.0612,99.469,99.422,2.41589494]
[1770168945903,2.58899572,99.46,99.422,2.41589494]
[1770168946099,2.58899572,99.47,99.422,2.41589494]
[1770168946301,12.75895105,99.479,99.422,2.41589494]
[1770168946503,3.69875105,99.479,99.422,2.41589494]
[1770168947706,3.69875105,99.479,99.423,2.45938927]
[1770168948207,9.0591,99.492,99.423,2.45938927]
[1770168948509,3.69875105,99.489,99.426,2.45938927]
[1770168948902,3.69875105,99.489,99.417,401.06]
[1770168949308,140.9173,99.494,99.412,2.45938927]
[1770168949309,3.69875105,99.468,99.412,2.45938927]
[1770168951605,140.9288,99.486,99.375,141.0844]
[1770168951606,3.85473578,99.463,99.395,2.45768715]
[1770168951807,140.9173,99.494,99.389,401.16]
[1770168951808,3.85473578,99.492,99.417,2.45768715]
[1770168952009,140.8995,99.506,99.417,2.45768715]
[1770168952010,3.85473578,99.488,99.417,2.45768715]
[1770168952209,3.85473578,99.488,99.432,2.45768715]
[1770168952805,3.85473578,99.51,99.45,9.0628]
[1770168953208,3.85473578,99.51,99.451,2.51666627]
[1770168953712,3.85473578,99.506,99.451,2.51666627]
[1770168955012,3.85473578,99.523,99.468,2.51666627]
[1770168955604,3.85473578,99.523,99.456,401.2]
[1770168956013,9.0571,99.514,99.456,401.2]
[1770168956312,3.67606842,99.513,99.431,2.48971435]
[1770168956706,3.67606842,99.499,99.431,2.48971435]
[1770168957210,3.67606842,99.497,99.443,2.41978068]
[1770168957816,3.67606842,99.497,99.447,9.0631]
[1770168958414,3.67606842,99.497,99.447,11.48288068]
[1770168959320,3.67606842,99.497,99.452,9.0626]
[1770168960716,3.67606842,99.518,99.462,9.0618]
[1770168960911,3.67606842,99.518,99.463,2.39727477]
[1770168961215,3.67606842,99.548,99.488,9.0594]
[1770168961407,3.67606842,99.579,99.494,2.43325815]
[1770168961814,3.67606842,99.579,99.499,9.0584]
[1770168962013,3.67606842,99.571,99.494,2.43325815]
[1770168962209,3.67606842,99.562,99.471,2.43325815]
[1770168963216,3.67606842,99.562,99.473,2.43325815]
[1770168963415,9.0538,99.55,99.487,2.44990442]
[1770168964510,140.8048,99.573,99.487,2.44990442]
[1770168964511,3.67606842,99.547,99.487,2.44990442]
[1770168964711,3.67606842,99.566,99.487,2.44990442]
[1770168964917,3.67606842,99.564,99.487,2.44990442]
[1770168965714,140.8048,99.573,99.487,2.44990442]
[1770168965715,3.67606842,99.553,99.489,9.0593]
[1770168966913,12.72996842,99.549,99.494,9.0588]
[1770168967322,3.67606842,99.548,99.49,2.40215733]
[1770168967616,3.67606842,99.544,99.47,185.44]
[1770168967815,3.67606842,99.539,99.47,185.44]
[1770168968224,3.67606842,99.537,99.472,9.0608]
[1770168968722,3.67606842,99.537,99.482,2.3815539]
[1770168969020,3.67606842,99.537,99.471,2.3815539]
[1770168969416,3.67606842,99.536,99.474,2.27397185]
[1770168970320,3.67606842,99.536,99.478,9.0602]
[1770168971524,3.67606842,99.536,99.47,185.44]
[1770168971525,3.67606842,99.536,99.483,9.0598]
[1770168973424,3.67606842,99.536,99.491,9.0591]
[1770168974927,3.67606842,99.536,99.48,9.0601]
[1770168975118,3.67606842,99.536,99.479,2.26670063]
[1770168975322,3.67606842,99.536,99.47,185.44]
[1770168975323,3.67606842,99.516,99.465,9.0614]
[1770168975720,3.67606842,99.516,99.462,2.25942043]
[1770168975925,140.8524,99.539,99.44,401.08]
[1770168975926,3.67606842,99.514,99.451,9.0627]
[1770168976125,3.67606842,99.514,99.452,2.30488962]
[1770168976326,3.67606842,99.514,99.44,401.08]
[1770168976526,3.67606842,99.514,99.441,2.30488962]
[1770168977622,9.0585,99.499,99.443,9.0634]
[1770168979526,3.67606842,99.485,99.407,2.30960288]
[1770168979830,3.67606842,99.479,99.39,2.30960288]
[1770168980028,3.67606842,99.447,99.39,2.30960288]
[1770168980534,3.67606842,99.447,99.392,9.0681]
[1770168980927,3.67606842,99.447,99.39,2.30960288]
[1770168981234,3.51650136,99.445,99.39,2.30960288]
[1770168982930,3.51650136,99.443,99.39,2.30960288]
[1770168983129,3.51650136,99.443,99.373,2.36899717]
[1770168983634,3.51650136,99.443,99.335,141.1415]
[1770168983635,3.51650136,99.428,99.353,2.38003536]
[1770168984433,3.51650136,99.425,99.369,9.0702]
[1770168985034,3.51650136,99.425,99.353,2.38003536]
[1770168985228,3.51650136,99.425,99.368,9.0703]
[1770168988130,3.51650136,99.425,99.373,9.0699]
[1770168989231,3.51650136,99.442,99.38,2.11509534]
[1770168989737,3.51650136,99.429,99.366,9.0705]
[1770168990333,3.51650136,99.429,99.367,2.11509534]
[1770168990635,3.51650136,99.425,99.354,9.0715]
[1770168990827,3.51650136,99.425,99.355,2.11509534]
[1770168991233,3.51650136,99.425,99.368,9.0703]
[1770168992232,3.51650136,99.425,99.354,141.1132]
[1770168992233,3.51650136,99.448,99.375,2.13294092]
[1770168992430,3.51650136,99.439,99.375,2.13294092]
[1770168992736,140.9928,99.44,99.345,141.1264]
[1770168992737,3.51650136,99.437,99.359,2.13294092]
[1770168993339,3.51650136,99.422,99.36,9.0711]
[1770168993735,140.9991,99.436,99.359,2.13294092]
[1770168993736,3.51650136,99.418,99.359,2.13294092]
[1770168994240,9.0661,99.415,99.352,9.0718]
[1770168994437,9.0661,99.415,99.313,141.1727]
[1770168994438,3.51650136,99.399,99.329,2.12893342]
[1770168994838,147.21671763,99.4,99.329,2.12893342]
[1770168994839,3.51650136,99.396,99.329,2.12893342]
[1770168995338,3.51650136,99.383,99.318,367.0]
[1770168995538,3.51650136,99.383,99.319,1.54767444]
[1770168996237,3.51650136,99.38,99.305,1.54767444]
[1770168996433,3.51650136,99.374,99.286,1.54767444]
[1770168996635,3.51650136,99.374,99.297,1.54767444]
[1770168997033,3.51650136,99.37,99.306,9.076]
[1770168997746,3.51650136,99.37,99.312,9.0754]
[1770168998347,12.68972311,99.359,99.313,401.48]
[1770168998536,3.61852311,99.358,99.289,0.48219625]
[1770168998737,3.61852311,99.358,99.29,401.48]
[1770168999133,141.0907,99.371,99.29,401.48]
[1770168999134,3.61852311,99.345,99.29,401.48]
[1770168999645,3.66053698,99.341,99.277,9.0786]
[1770168999840,3.66053698,99.341,99.278,401.5]
[1770169000537,3.66053698,99.341,99.279,0.39816851]
[1770169000742,3.66053698,99.37,99.282,0.39816851]
[1770169001649,9.071,99.361,99.292,9.0773]
[1770169001846,141.0905,99.371,99.292,9.0773]
[1770169001847,3.74894865,99.36,99.292,9.0773]
[1770169002042,3.74894865,99.36,99.293,401.56]
[1770169002950,3.74894865,99.352,99.293,401.56]
[1770169004554,9.0729,99.34,99.293,401.56]
[1770169005054,9.0729,99.34,99.294,401.64]
[1770169005247,3.70118427,99.339,99.295,401.64]
[1770169006754,9.0708,99.363,99.307,0.30567823]
[1770169006955,3.70678212,99.362,99.307,0.30567823]
[1770169007650,9.0712,99.359,99.307,0.30567823]
[1770169007855,3.7044695,99.358,99.307,0.30567823]
[1770169008055,3.7044695,99.358,99.308,401.68]
[1770169009154,9.0714,99.357,99.308,401.68]
[1770169009556,3.71786208,99.356,99.308,401.68]
[1770169009757,3.71786208,99.356,99.304,401.7]
[1770169010654,9.0734,99.335,99.304,401.7]
[1770169011655,3.78347431,99.325,99.262,0.24727154]
[1770169011863,3.78347431,99.325,99.263,401.7]
[1770169012259,3.78347431,99.325,99.263,401.94727154]
[1770169012454,3.78347431,99.325,99.264,0.24727154]
[1770169012655,9.0744,99.324,99.264,9.32707154]
[1770169013262,3.78347431,99.342,99.284,0.24140588]
[1770169013461,141.0722,99.384,99.284,0.24140588]
[1770169013462,3.78347431,99.369,99.284,0.24140588]
[1770169013660,3.78347431,99.369,99.291,0.24140588]
[1770169013866,3.78347431,99.369,99.293,0.24140588]
[1770169014159,3.78347431,99.363,99.303,9.0762]
[1770169015563,3.73286176,99.362,99.303,9.0762]
[1770169016462,3.73286176,99.362,99.305,9.0761]
[1770169017357,3.73286176,99.362,99.292,351.12]
[1770169017358,3.72427529,99.378,99.316,0.26884939]
[1770169017562,3.72427529,99.378,99.3,141.1909]
[1770169017563,3.72427529,99.378,99.318,0.26884939]
[1770169018662,3.72427529,99.378,99.318,9.34374939]
[1770169018869,3.72427529,99.378,99.319,0.26884939]
[1770169019665,3.72427529,99.378,99.322,9.0745]
[1770169020363,141.0134,99.426,99.333,0.25934849]
[1770169020364,3.72902573,99.398,99.333,0.25934849]
[1770169020562,3.72902573,99.398,99.335,0.25934849]
[1770169021161,3.72902573,99.396,99.34,9.0728]
[1770169021461,140.9949,99.439,99.322,141.1587]
[1770169021462,3.72785219,99.425,99.349,0.26169559]
[1770169021768,140.9949,99.439,99.331,141.146]
[1770169021769,12.79315219,99.424,99.361,0.26169559]
[1770169021958,9.0653,99.424,99.361,0.26169559]
[1770169022161,3.72785219,99.423,99.361,0.26169559]
[1770169022367,3.72785219,99.478,99.412,0.26169559]
[1770169022557,3.72785219,99.478,99.411,141.0332]
[1770169022558,3.72785219,99.478,99.423,0.26169559]
[1770169022868,3.72785219,99.513,99.443,9.0635]
[1770169023060,3.72785219,99.513,99.43,0.26169559]
[1770169023263,3.72785219,99.511,99.43,0.26169559]
[1770169023465,3.72785219,99.511,99.432,0.53258801]
[1770169023665,3.72785219,99.511,99.442,0.53258801]
[1770169023961,3.72785219,99.511,99.446,9.0632]
[1770169024159,3.72785219,99.511,99.447,0.53258801]
[1770169024768,3.72785219,99.511,99.448,401.68]
[1770169024964,3.72785219,99.511,99.449,0.53258801]
[1770169025163,6.18412145,99.56,99.448,401.68]
[1770169025164,3.59240598,99.539,99.458,0.53258801]
[1770169025367,3.59240598,99.539,99.468,0.58883731]
[1770169025762,3.59240598,99.539,99.46,140.9639]
[1770169025763,3.59240598,99.539,99.48,0.58883731]
[1770169026163,3.5737853,99.563,99.484,0.58883731]
[1770169026565,3.5737853,99.563,99.492,0.58883731]
[1770169026871,3.5737853,99.563,99.494,0.58883731]
[1770169027063,3.5737853,99.563,99.499,0.58883731]
[1770169028568,3.5737853,99.563,99.506,0.56216414]
[1770169030965,3.5737853,99.563,99.493,401.56]
[1770169031568,3.60907148,99.559,99.468,0.499257]
[1770169031773,3.60907148,99.548,99.47,0.499257]
[1770169032568,140.8182,99.564,99.474,0.499257]
[1770169032569,3.60907148,99.543,99.474,0.499257]
[1770169033771,3.61626805,99.541,99.475,401.26]
[1770169034376,3.61626805,99.54,99.475,401.26]
[1770169034968,3.61626805,99.538,99.475,401.26]
[1770169036773,3.61522695,99.534,99.475,401.26]
[1770169037073,3.61522695,99.507,99.436,0.48694606]
[1770169037281,3.61522695,99.507,99.437,401.2]
[1770169037468,9.0584,99.5,99.436,0.48694606]
[1770169037774,3.58596461,99.499,99.437,401.18]
[1770169038370,3.58596461,99.499,99.438,401.72547074]
[1770169039376,9.0587,99.496,99.438,401.72547074]
[1770169040080,140.8617,99.533,99.36,6.18412145]
[1770169040081,3.5737853,99.542,99.458,0.78840403]
[1770169040279,3.5737853,99.542,99.46,0.78840403]
[1770169040577,3.5737853,99.542,99.462,0.77717475]
[1770169041581,3.8436442,99.527,99.437,0.802555]
[1770169041785,3.8436442,99.527,99.439,0.802555]
[1770169042782,3.8436442,99.521,99.449,0.802555]
[1770169043086,3.8436442,99.521,99.451,0.802555]
[1770169044482,3.8436442,99.521,99.452,9.0626]
[1770169044681,3.8436442,99.521,99.452,9.94874205]
[1770169045280,3.8436442,99.521,99.453,0.88614205]
[1770169045481,9.0566,99.519,99.454,9.0624]
[1770169045975,3.8436442,99.518,99.455,401.16]
[1770169046179,9.0572,99.512,99.456,401.16]
[1770169047084,12.9008442,99.512,99.456,401.16]
[1770169047783,3.8436442,99.512,99.456,401.16]
[1770169048286,3.8436442,99.53,99.47,0.89530838]
[1770169048485,3.8436442,99.53,99.471,401.14]
[1770169048984,9.0557,99.529,99.471,410.2009]
[1770169049385,9.0565,99.52,99.471,401.14]
[1770169049680,3.8436442,99.519,99.472,401.14]
[1770169050883,9.0567,99.518,99.473,401.14]
[1770169051275,3.8436442,99.515,99.473,401.14]
[1770169051475,140.881,99.519,99.465,401.14]
[1770169051880,9.0584,99.499,99.465,401.14]
[1770169053382,9.0584,99.499,99.454,401.14]
[1770169054690,9.0602,99.48,99.428,35.19826409]
[1770169055183,140.9149,99.495,99.402,141.0455]
[1770169055184,9.0612,99.468,99.41,35.19848002]
[1770169055380,140.9407,99.477,99.411,335.32]
[1770169055686,9.0621,99.458,99.411,335.32]
[1770169057079,9.0621,99.458,99.411,370.51848002]
[1770169057483,9.0621,99.458,99.412,35.33059335]
[1770169057687,9.0612,99.469,99.412,35.33059335]
[1770169057887,140.9364,99.48,99.412,35.33059335]
[1770169058085,9.062,99.46,99.412,35.33059335]
[1770169058586,9.0608,99.473,99.414,35.33059335]
[1770169058793,140.9149,99.495,99.414,35.33059335]
[1770169058987,140.9268,99.487,99.414,35.33059335]
[1770169059689,9.0609,99.472,99.416,35.40833183]
[1770169060598,9.062,99.46,99.416,35.40833183]
[1770169061483,9.0621,99.459,99.416,35.40833183]
[1770169061693,140.9488,99.471,99.416,35.40833183]
[1770169061894,9.0616,99.464,99.416,35.40833183]
[1770169062581,6.17052168,99.49,99.416,35.40833183]
[1770169062786,140.9106,99.498,99.416,35.40833183]
[1770169063795,9.0599,99.482,99.422,35.63813672]
[1770169065690,9.0608,99.473,99.422,35.63813672]
[1770169065886,140.9346,99.481,99.422,35.63813672]
[1770169067695,9.0616,99.464,99.422,35.63813672]
[1770169071294,6.17052168,99.52,99.425,35.7191485]
[1770169071498,6.17052168,99.52,99.411,335.32]
[1770169071499,140.9262,99.487,99.411,335.32]
[1770169071797,140.9262,99.487,99.412,35.7191485]
[1770169072095,140.9108,99.498,99.415,35.7191485]
[1770169072400,140.893,99.511,99.415,35.7191485]
[1770169072598,140.8692,99.528,99.434,35.7191485]
[1770169072895,6.17052168,99.54,99.448,35.7191485]
[1770169073591,6.17052168,99.56,99.471,35.78511287]
[1770169073796,140.8168,99.565,99.473,35.78511287]
[1770169073996,140.8168,99.565,99.46,140.9635]
[1770169073997,9.0528,99.561,99.495,35.78511287]
[1770169076202,9.0538,99.55,99.495,35.78511287]
[1770169076900,140.8114,99.568,99.495,35.78511287]
[1770169076901,9.0546,99.541,99.495,35.78511287]
[1770169077598,9.0554,99.532,99.47,35.75206302]
[1770169077804,146.99402168,99.56,99.47,35.75206302]
[1770169077805,140.8522,99.54,99.47,35.75206302]
[1770169078100,140.8543,99.538,99.47,35.75206302]
[1770169079101,9.0562,99.523,99.47,35.75206302]
[1770169079495,140.8434,99.546,99.47,35.75206302]
[1770169079910,9.0563,99.522,99.47,35.75206302]
[1770169080400,140.8294,99.556,99.47,35.75206302]
[1770169080603,9.0552,99.534,99.473,35.75246631]
[1770169080806,140.8501,99.541,99.473,35.75246631]
[1770169081004,9.0576,99.509,99.464,311.78]
[1770169081204,6.17052168,99.5,99.419,35.75246631]
[1770169081701,9.0605,99.477,99.422,35.75566939]
[1770169082101,140.8879,99.514,99.422,35.75566939]
[1770169082308,140.8879,99.514,99.424,35.75566939]
[1770169082807,9.0584,99.499,99.437,35.75566939]
[1770169083206,168.4,99.536,99.437,35.75566939]
[1770169083711,140.8868,99.515,99.443,35.7214168]
[1770169084107,9.059,99.492,99.443,35.7214168]
[1770169085010,9.0601,99.481,99.443,35.7214168]
[1770169086010,9.0589,99.494,99.443,35.7214168]
[1770169086900,12.2395552,99.539,99.433,9.0643]
[1770169086901,9.33760566,99.538,99.446,35.71664772]
[1770169087101,140.8535,99.539,99.447,35.71664772]
[1770169087307,1.74902057,99.553,99.46,35.75615777]
[1770169087507,9.0552,99.535,99.475,35.75615777]
[1770169087706,140.8307,99.555,99.475,35.75615777]
[1770169087707,140.842,99.547,99.475,35.75615777]
[1770169087903,140.8403,99.548,99.475,35.75615777]
[1770169088109,9.0567,99.518,99.475,35.75615777]
[1770169089310,140.8403,99.548,99.475,35.75615777]
[1770169089915,9.0558,99.528,99.477,35.66820529]
[1770169090315,140.8252,99.559,99.477,35.66820529]
[1770169090809,9.0549,99.538,99.488,35.66820529]
[1770169093115,9.0557,99.529,99.471,35.66421888]
[1770169095512,9.0566,99.519,99.471,35.66421888]
[1770169095914,140.8516,99.54,99.471,35.66421888]
[1770169096319,9.0558,99.528,99.471,35.66421888]
[1770169097521,9.0558,99.528,99.473,35.66275231]
[1770169102822,140.8663,99.53,99.473,35.66275231]
[1770169103018,140.8963,99.508,99.422,35.6667823]
[1770169103322,140.8963,99.508,99.424,35.6667823]
[1770169103722,140.8963,99.508,99.423,387.72]
[1770169103723,9.0602,99.48,99.433,35.64713049]
[1770169103918,140.8993,99.506,99.433,35.64713049]
[1770169104120,140.9012,99.505,99.433,35.64713049]
[1770169104329,9.0597,99.485,99.433,35.64713049]
[1770169105821,9.0597,99.485,99.435,35.69204853]
[1770169106220,9.0589,99.494,99.446,35.69204853]
[1770169108426,9.0581,99.503,99.448,35.68538893]
[1770169108621,148.95404517,99.53,99.448,35.68538893]
[1770169108826,140.8494,99.542,99.45,35.68538893]
[1770169109025,169.58,99.547,99.45,35.68538893]
[1770169109026,9.058,99.504,99.45,35.68538893]
[1770169109526,140.8815,99.519,99.45,35.68538893]
[1770169109726,9.0587,99.496,99.45,35.68538893]
[1770169109926,140.9078,99.5,99.45,35.68538893]
[1770169110123,140.9078,99.5,99.432,35.71174796]
[1770169110327,9.0601,99.481,99.432,35.71174796]
[1770169111321,9.061,99.471,99.432,35.71174796]
[1770169111622,140.8951,99.509,99.432,35.71174796]
[1770169111623,140.9303,99.484,99.432,35.71174796]
[1770169112730,140.9446,99.474,99.398,408.8276]
[1770169113329,140.9446,99.474,99.398,9.0676]
[1770169113532,9.0632,99.447,99.396,243.52]
[1770169113727,8.08764517,99.45,99.345,141.1267]
[1770169113925,141.0135,99.426,99.324,141.1569]
[1770169114229,9.0656,99.42,99.344,141.1287]
[1770169114419,9.0656,99.42,99.336,401.18]
[1770169114625,8.08764517,99.43,99.336,401.18]
[1770169114626,141.0189,99.422,99.337,26.99560077]
[1770169115021,9.0667,99.408,99.342,26.99560077]
[1770169115227,8.08764517,99.43,99.344,26.99560077]
[1770169115829,140.9994,99.436,99.344,26.99560077]
[1770169116231,9.0647,99.43,99.361,27.01430623]
[1770169116430,9.0647,99.43,99.362,27.01430623]
[1770169117523,9.0656,99.42,99.362,27.01430623]
[1770169118927,9.0643,99.435,99.369,27.06859089]
[1770169119734,9.0643,99.435,99.371,27.06966216]
[1770169120333,9.0643,99.435,99.373,27.06966216]
[1770169120536,8.10483618,99.47,99.377,27.06966216]
[1770169120736,8.10483618,99.47,99.379,27.06966216]
[1770169121333,8.10483618,99.47,99.376,141.0831]
[1770169121334,8.10483618,99.47,99.381,27.07998815]
[1770169121532,140.9587,99.464,99.395,27.07998815]
[1770169121927,140.9346,99.481,99.395,27.07998815]
[1770169122732,8.10483618,99.49,99.4,27.07998815]
[1770169123337,9.0608,99.473,99.405,27.06663594]
[1770169123934,9.0608,99.473,99.417,27.06663594]
[1770169125030,9.0596,99.486,99.423,27.06663594]
[1770169126135,313.9194,99.506,99.423,27.06663594]
[1770169126337,313.9194,99.506,99.172,81.93396493]
[1770169126338,8.10483618,99.45,99.386,27.07428191]
[1770169126738,9.0621,99.459,99.391,27.07428191]
[1770169127231,140.9573,99.465,99.391,27.07428191]
[1770169127635,140.9661,99.459,99.391,27.07428191]
[1770169127937,140.952,99.469,99.391,27.07428191]
[1770169128138,8.10483618,99.47,99.391,27.07428191]
[1770169129636,8.10483618,99.47,99.387,401.34]
[1770169129637,9.063,99.449,99.392,26.99345464]
[1770169130343,9.063,99.449,99.396,26.99345464]
[1770169130642,9.062,99.46,99.398,26.99342181]
[1770169131842,9.062,99.46,99.408,26.97705597]
[1770169133344,9.0611,99.47,99.408,26.97705597]
[1770169133647,9.0611,99.47,99.413,26.98255348]
[1770169133839,140.896,99.509,99.413,26.98255348]
[1770169134046,9.0602,99.48,99.426,26.98255348]
[1770169140050,140.896,99.509,99.426,26.98255348]
[1770169140051,140.9326,99.483,99.426,26.98255348]
[1770169140646,9.0619,99.461,99.415,26.9712525]
[1770169140949,8.10483618,99.49,99.415,26.9712525]
[1770169141845,9.0609,99.472,99.417,26.96999326]
[1770169142039,8.10483618,99.49,99.417,26.96999326]
[1770169142240,140.9214,99.491,99.417,26.96999326]
[1770169142645,8.10483618,99.51,99.417,26.96999326]
[1770169143242,8.10483618,99.51,99.43,26.97000503]
[1770169143443,172.68,99.519,99.43,26.97000503]
[1770169143643,140.9053,99.502,99.43,26.97000503]
[1770169143842,140.9068,99.501,99.432,26.97000503]
[1770169144453,8.10483618,99.51,99.432,26.97000503]
[1770169144850,9.059,99.492,99.433,26.98088495]
[1770169145050,140.9062,99.501,99.433,26.98088495]
[1770169145251,140.9024,99.504,99.433,26.98088495]
[1770169145252,140.9107,99.498,99.433,26.98088495]
[1770169146154,140.9144,99.496,99.433,26.98088495]
[1770169147251,9.0606,99.475,99.433,26.98088495]
[1770169147651,9.0598,99.484,99.433,26.98088495]
[1770169149157,9.0606,99.475,99.433,26.98088495]
[1770169149357,140.9272,99.487,99.433,26.98088495]
[1770169150760,9.0613,99.468,99.433,26.98088495]
[1770169153560,9.0603,99.478,99.433,26.98088495]
[1770169154062,8.10483618,99.51,99.433,26.98088495]
[1770169154063,9.33349767,99.507,99.433,26.98088495]
[1770169154254,9.33349767,99.505,99.433,26.98088495]
[1770169154451,8.10483618,99.51,99.437,27.07208229]
[1770169154452,9.0594,99.488,99.437,27.07208229]
[1770169155153,9.0586,99.497,99.44,27.07208229]
[1770169156657,9.0586,99.497,99.442,9.0635]
[1770169156862,9.0586,99.497,99.443,27.10049409]
[1770169158466,9.0593,99.489,99.443,27.10049409]
[1770169160469,8.10483618,99.49,99.427,27.16873994]
[1770169160865,9.0612,99.469,99.427,27.16873994]
[1770169161569,9.0612,99.469,99.377,141.0816]
[1770169161570,140.969,99.457,99.4,27.18788669]
[1770169161767,8.10483618,99.47,99.4,27.18788669]
[1770169161768,140.9732,99.454,99.4,27.18788669]
[1770169161969,149.08433618,99.45,99.4,27.18788669]
[1770169162171,8.10483618,99.45,99.4,27.18788669]
[1770169162369,8.10483618,99.47,99.4,27.18788669]
[1770169162570,140.9385,99.479,99.4,27.18788669]
[1770169162770,9.0618,99.462,99.403,27.19928529]
[1770169163973,9.0607,99.474,99.405,27.18894246]
[1770169164773,9.0607,99.474,99.41,27.19957453]
[1770169164971,9.0615,99.465,99.41,27.19957453]
[1770169165768,9.0606,99.475,99.41,27.19957453]
[1770169166966,9.38020682,99.471,99.41,27.19957453]
[1770169167271,140.9565,99.466,99.41,27.19957453]
[1770169167866,140.9565,99.466,99.381,401.32]
[1770169167867,9.38020682,99.459,99.387,27.26315695]
[1770169168064,9.38020682,99.458,99.387,27.26315695]
[1770169168274,9.0637,99.441,99.387,27.26315695]
[1770169168976,9.0646,99.431,99.387,27.26315695]
[1770169170175,9.0656,99.421,99.387,27.26315695]
[1770169170368,9.38020682,99.452,99.387,27.26315695]
[1770169170580,9.0635,99.443,99.387,27.26315695]
[1770169170765,140.9765,99.452,99.387,27.26315695]
[1770169171165,9.0636,99.443,99.387,27.26315695]
[1770169173682,140.9642,99.461,99.389,27.24722218]
[1770169173870,8.10483618,99.42,99.372,27.24722218]
[1770169174065,8.10483618,99.42,99.34,382.46424431]
[1770169174066,141.0301,99.414,99.34,382.46424431]
[1770169174474,9.0679,99.395,99.34,382.46424431]
[1770169175170,9.0687,99.386,99.34,382.46424431]
[1770169175375,9.38020682,99.416,99.34,382.46424431]
[1770169175376,8.10483618,99.42,99.34,382.46424431]
[1770169176072,9.0668,99.407,99.345,18.21923979]
[1770169177073,9.0668,99.407,99.348,9.0721]
[1770169177273,9.0668,99.407,99.34,783.86424431]
[1770169177274,9.0654,99.422,99.35,18.83605584]
[1770169178276,9.0654,99.422,99.362,9.0709]
[1770169178475,9.0654,99.422,99.363,18.85218759]
[1770169179379,9.0663,99.413,99.363,18.85218759]
[1770169182972,9.0653,99.423,99.363,18.85218759]
[1770169183172,175.68,99.455,99.363,18.85218759]
[1770169183173,8.10718409,99.45,99.363,18.85218759]
[1770169183374,8.10718409,99.45,99.364,401.48]
[1770169183584,8.10718409,99.45,99.365,18.90763389]
[1770169184382,9.0634,99.445,99.376,18.92238541]
[1770169185784,9.0634,99.445,99.381,18.95769582]
[1770169187883,140.9857,99.445,99.381,18.95769582]
[1770169188386,3.24231665,99.42,99.381,18.95769582]
[1770169192589,9.0658,99.419,99.381,18.95769582]
[1770169192788,3.24231665,99.41,99.381,18.95769582]
[1770169193487,9.0658,99.419,99.381,18.95769582]
[1770169194088,3.24231665,99.44,99.381,18.95769582]
[1770169194277,3.24231665,99.45,99.383,19.11063926]
[1770169194688,9.0639,99.439,99.387,9.0686]
[1770169194884,9.0639,99.439,99.388,19.12413429]
[1770169197691,12.30521665,99.45,99.388,19.12413429]
[1770169197891,12.30521665,99.45,99.392,9.0681]
[1770169198183,12.30521665,99.45,99.393,19.19351355]
[1770169199090,9.0639,99.439,99.393,19.19351355]
[1770169199287,3.24231665,99.44,99.393,19.19351355]
[1770169199594,3.24231665,99.43,99.393,19.19351355]
[1770169199889,9.0649,99.428,99.393,19.19351355]
[1770169200585,9.0656,99.421,99.393,19.19351355]
[1770169201491,3.24231665,99.4,99.341,19.16510424]
[1770169201690,3.24231665,99.4,99.343,19.16510424]
[1770169202293,12.30971665,99.4,99.346,19.16510424]
[1770169202488,12.30971665,99.4,99.348,19.17671724]
[1770169203189,3.24231665,99.43,99.361,19.17671724]
[1770169203387,3.24231665,99.43,99.363,19.12302705]
[1770169203590,3.24231665,99.43,99.371,19.12302705]
[1770169203892,3.24231665,99.42,99.371,19.12302705]
[1770169204290,12.30801665,99.42,99.371,19.12302705]
[1770169204491,3.24231665,99.42,99.371,19.12302705]
[1770169204892,9.38020682,99.453,99.371,19.12302705]
[1770169204893,3.24231665,99.43,99.371,19.12302705]
[1770169205092,9.0648,99.429,99.375,19.13383156]
[1770169205690,12.30611665,99.44,99.377,19.10026794]
[1770169206490,3.24231665,99.43,99.377,19.10026794]
[1770169206694,3.24231665,99.42,99.377,19.10026794]
[1770169206896,3.24231665,99.41,99.377,19.10026794]
[1770169207192,3.24231665,99.42,99.377,19.10026794]
[1770169207393,9.0648,99.429,99.377,19.10026794]
[1770169207788,3.24231665,99.43,99.377,19.10026794]
[1770169209697,3.24231665,99.42,99.377,19.10026794]
[1770169209996,140.9849,99.446,99.377,19.10026794]
[1770169209997,3.24231665,99.43,99.377,19.10026794]
[1770169210690,9.0649,99.429,99.377,19.10026794]
[1770169218202,9.0649,99.429,99.378,9.0694]
[1770169218403,9.0649,99.429,99.379,19.29012937]
[1770169219104,9.0655,99.421,99.379,19.29012937]